lending/lending_fUSD_20241211
["ID","MTS","AMOUNT","RATE_DAILY","PERIOD"]
[345004430,1733922639641,-3222.21902191,0.00010858,2]
[345004431,1733922639807,-5019.68047745,0.00010858,2]
[345004432,1733922639827,-13382.24690064,0.00010858,2]
[345004433,1733922639838,-13642.6499,0.00010858,2]
[345004434,1733922639848,-1037.3732,0.00010858,2]
[345004435,1733922639860,-435.74,0.00010886,2]
[345004436,1733922639870,-254.3972,0.00010889,2]
[345004437,1733922639881,-1000.0,0.0001089,2]
[345004438,1733922639893,-898.918,0.00010899,2]
[345004439,1733922639904,-541.7178,0.000109,2]
[345004440,1733922639914,-865.13,0.00010907,2]
[345004441,1733922639926,-2453.00112587,0.00010934,2]
[345004442,1733922639937,-500.0,0.00010958,2]
[345004443,1733922639949,-500.0,0.00010958,2]
[345004444,1733922639963,-500.0,0.00010958,2]
[345004445,1733922639973,-150.0,0.00010959,2]
[345004446,1733922639984,-5197.9345932,0.00010967,2]
[345004447,1733922639996,-484.11,0.00010967,2]
[345004448,1733922640009,-663.255,0.00010967,2]
[345004449,1733922640022,-1227.93794458,0.00010967,2]
[345004458,1733922642523,-437.264,0.00010889,2]
[345004459,1733922642534,-9825.55348661,0.00010967,2]
[345004460,1733922642547,-1027.0,0.00010967,2]
[345004461,1733922642586,-1353.99011356,0.00010967,2]
[345004472,1733922645440,-273.76474,0.00010967,2]
[345004473,1733922645473,-2845.79734964,0.00010967,2]
[345004474,1733922645486,-4004.3,0.00010967,2]
[345004475,1733922645497,-9350.276188,0.00010967,2]
[345004476,1733922645510,-180910.0,0.00010967,2]
[345004477,1733922645522,-17531.78841443,0.00010967,2]
[345004478,1733922645532,-3084.76953216,0.00010968,2]
[345004479,1733922645542,-416.82483192,0.00010969,2]
[345004480,1733922645552,-3265.61376069,0.00010971,2]
[345004481,1733922645562,-82316.80183602,0.00010973,2]
[345004482,1733922645573,-987.44471079,0.00010973,2]
[345004483,1733922645588,-2572.3845,0.00010973,2]
[345004484,1733922645606,-331.6575005,0.00010973,2]
[345004485,1733922645657,-1190.1255,0.00010973,2]
[345004486,1733922645670,-15282.99283183,0.00010973,2]
[345004487,1733922645727,-492.5401256,0.00010973,2]
[345004490,1733922761153,5007.32,0.0002,120]
[345004492,1733922917386,205.14,8.236e-05,2]
[345004497,1733923113315,806.28,8.28e-05,2]
[345004500,1733923461659,174.37,8.082e-05,2]
[345004501,1733923466360,200.0,8.042e-05,2]
[345004502,1733923508895,10959.21,0.0001,2]
[345004503,1733923508919,10000.0,0.0001,2]
[345004504,1733923508945,10000.0,0.0001,2]
[345004505,1733923508968,10000.0,0.0001,2]
[345004506,1733923508991,10000.0,0.0001,2]
[345004507,1733923509016,10000.0,0.0001,2]
[345004508,1733923509042,10000.0,0.0001,2]
[345004509,1733923509067,10000.0,0.0001,2]
[345004510,1733923509312,10000.0,0.0001,2]
[345004511,1733923509343,10000.0,0.0001,2]
[345004512,1733923509367,10000.0,0.0001,2]
[345004513,1733923509399,10000.0,0.0001,2]
[345004514,1733923509423,10000.0,0.0001,2]
[345004515,1733923509448,5200.89714673,0.0001,2]
[345004521,1733923720814,-403.42,0.00010056,2]
[345004523,1733923720837,-250.0,0.00010081,2]
[345004525,1733923720859,-577.22,0.00010089,2]
[345004526,1733923720881,-250.0,0.00010112,2]
[345004527,1733923720904,-250.0,0.00010125,2]
[345004528,1733923720927,-1000.0,0.00010126,2]
[345004529,1733923720951,-187.8,0.00010317,2]
[345004530,1733923720972,-167.03,0.00010356,2]
[345004531,1733923720995,-806.28,0.00010544,2]
[345004532,1733923721017,-304.62,0.0001055,2]
[345004536,1733923745381,-10000.0,0.00010673,2]
[345004537,1733923750657,-602.73285327,0.00010673,2]
[345004538,1733923773054,-10000.0,0.00010781,2]
[345004539,1733923780174,-10000.0,0.00010781,2]
[345004540,1733923786393,-6564.0,0.00010781,2]
[345004541,1733923797666,-3000.0,0.0001086,2]
[345004542,1733923797687,-282.09264017,0.0001087,2]
[345004543,1733923797709,-153.90735983,0.00010899,2]
[345004544,1733923806611,-846.09264017,0.00010899,2]
[345004545,1733923806635,-186.18758136,0.00010899,2]
[345004546,1733923806660,-300.0,0.00010899,2]
[345004547,1733923806684,-258.4916,0.000109,2]
[345004548,1733923806708,-823.8831,0.000109,2]
[345004549,1733923806731,-1000.0,0.000109,2]
[345004550,1733923806757,-572.7061,0.000109,2]
[345004551,1733923806781,-1000.0,0.000109,2]
[345004552,1733923806805,-781.59,0.000109,2]
[345004553,1733923806829,-975.06,0.000109,2]
[345004554,1733923806859,-501.36358668,0.00010973,2]
[345004555,1733923806883,-572.328679,0.00010973,2]
[345004556,1733923806905,-500.0,0.00010973,2]
[345004557,1733923806927,-500.0,0.00010973,2]
[345004558,1733923806948,-500.45175042,0.00010973,2]
[345004559,1733923806970,-500.0,0.00010973,2]
[345004560,1733923806993,-181.84496237,0.00010973,2]
[345004561,1733923814682,-318.15503763,0.00010973,2]
[345004562,1733923814707,-9681.84496237,0.00010973,2]
[345004563,1733923818475,-10000.0,0.00010973,2]
[345004564,1733923823143,-10000.0,0.00010973,2]
[345004602,1733923831678,-590.41788356,0.000109,2]
[345004613,1733923837636,-409.58211644,0.000109,2]
[345004614,1733923837645,-88.13788356,0.00010973,2]
[345004615,1733923837820,-2120.73250835,0.00010973,2]
[345004780,1733923839712,-283.62,0.00010973,2]
[345004838,1733923840322,-99347.425471,0.00010973,2]
[345004840,1733923840332,-5242.05208125,0.00010973,2]
[345004842,1733923840341,-416.82483192,0.00010975,2]
[345004844,1733923840351,-3265.61376069,0.00010977,2]
[345004846,1733923840360,-416.82483192,0.00010977,2]
[345004848,1733923840369,-33827.18423852,0.00010977,2]
[345004850,1733923840380,-33827.18423852,0.00010978,2]
[345004852,1733923840391,-3084.76953216,0.00010979,2]
[345004854,1733923840401,-5106.30130384,0.0001098,2]
[345004857,1733923840419,-28720.88293468,0.0001098,2]
[345004859,1733923840428,-30739.71524362,0.00010982,2]
[345004861,1733923840439,-3087.4689949,0.00010982,2]
[345004864,1733923840451,-3265.61376069,0.00010983,2]
[345004866,1733923840463,-229.31724441,0.00010983,2]
[345004868,1733923840477,-448.12608553,0.00010983,2]
[345004871,1733923840490,-24049.684382,0.00010983,2]
[345004874,1733923840505,-982.45049282,0.00010983,2]
[345004876,1733923840523,-1061.62031387,0.00010983,2]
[345004879,1733923840535,-272.241,0.00010983,2]
[345004882,1733923840556,-923.0925,0.00010983,2]
[345004884,1733923840570,-372.37,0.00010983,2]
[345004972,1733923842837,-18584.1938127,0.00010983,2]
[345004973,1733923842900,-3065.14969328,0.00010983,2]
[345004974,1733923842915,-11200.85504994,0.00010983,2]
[345004975,1733923843184,-4002.74064589,0.00010983,2]
[345004976,1733923843248,-1341.47799,0.00010983,2]
[345004977,1733923843261,-434.67999985,0.00010983,2]
[345004978,1733923843275,-1601.56145415,0.00010983,2]
[345004979,1733923843290,-1862.75000001,0.00010983,2]
[345004980,1733923843303,-2021.75005,0.00010983,2]
[345004993,1733923845673,-5687.37915259,0.00010983,2]
[345004994,1733923845688,-18908.9975,0.00010983,2]
[345004995,1733923845701,-1411.3,0.00010983,2]
[345004996,1733923845739,-1113.70970627,0.00010983,2]
[345004997,1733923845751,-3376.25222147,0.00010983,2]
[345004998,1733923845803,-2183.95593077,0.00010983,2]
[345004999,1733923845816,-2513.87735642,0.00010983,2]
[345005000,1733923846874,-127046.17524805,0.00010983,2]
[345005001,1733923846887,-5242.05208125,0.00010983,2]
[345005002,1733923846897,-610.04928,0.00010983,2]
[345005003,1733923846909,-3265.61376069,0.00010984,2]
[345005004,1733923846921,-3084.76953216,0.00010984,2]
[345005005,1733923846932,-3265.61376069,0.00010984,2]
[345005006,1733923846944,-416.82483192,0.00010985,2]
[345005007,1733923846955,-5242.05208125,0.00010986,2]
[345005008,1733923846967,-3084.76953216,0.00010987,2]
[345005009,1733923846992,-5242.05208125,0.00010987,2]
[345005010,1733923847003,-3084.76953216,0.00010988,2]
[345005011,1733923847016,-915.58128203,0.00010988,2]
[345005012,1733923847029,-200.0,0.00010988,2]
[345005013,1733923847040,-5242.05208125,0.00010989,2]
[345005014,1733923847052,-5242.05208125,0.00010989,2]
[345005015,1733923847063,-416.82483192,0.0001099,2]
[345005016,1733923847075,-3265.61376069,0.00010992,2]
[345005017,1733923847086,-14694.69543888,0.00010994,2]
[345005018,1733923847101,-18455.97239844,0.00010994,2]
[345005019,1733924013328,300.0,9.589e-05,2]
[345005020,1733924025891,2614.69,9.594e-05,2]
[345005022,1733924055274,166.81,9.585e-05,2]
[345005023,1733924065141,2171.77,8.219e-05,2]
[345005024,1733924088302,1500.0,9.558e-05,2]
[345005025,1733924103164,1000.0,9.501e-05,2]
[345005026,1733924103935,300.0,9.563e-05,2]
[345005027,1733924131662,1009.06,9.554e-05,2]
[345005028,1733924135411,1000.0,9.554e-05,2]
[345005029,1733924175094,470.49,9.572e-05,2]
[345005030,1733924186774,200.0,9.56e-05,2]
[345005031,1733924260821,2000.0,9.572e-05,2]
[345005032,1733924292013,200.0,9.594e-05,2]
[345005033,1733924338961,10432.25,9.586e-05,2]
[345005037,1733924383586,250.0,9.574e-05,2]
[345005038,1733924388885,170.986,9.313e-05,2]
[345005039,1733924499857,200.0,9.574e-05,2]
[345005040,1733924509317,613.944,9.813e-05,2]
[345005041,1733924529505,1088.49,9.574e-05,2]
[345005042,1733924542398,157.97,8.342e-05,2]
[345005043,1733924581335,250.0,9.568e-05,2]
[345005044,1733924625503,1761.18,9.561e-05,2]
[345005045,1733924640431,10000.0,0.00012201,15]
[345005046,1733924675087,4224.91520543,9.5e-05,2]
[345005047,1733924705379,23900.0,9.577e-05,2]
[345005048,1733924713427,10000.0,0.00012201,15]
[345005049,1733924715958,9580.46,9.563e-05,2]
[345005050,1733924826083,-150.51786283,0.00015,15]
[345005051,1733924826881,1340.91,0.00016595,119]
[345005053,1733924863413,-150.0,0.00016,18]
[345005057,1733924971058,166.81,9.581e-05,2]
[345005074,1733925031868,-400.0,9.863e-05,2]
[345005075,1733925031880,-73.89346681,9.868e-05,2]
[345005076,1733925031892,-93.92653319,9.868e-05,2]
[345005077,1733925031901,-157.44,9.918e-05,2]
[345005078,1733925031911,-176.63,0.00010116,2]
[345005079,1733925031920,-1560.84394681,0.00010207,2]
[345005080,1733925031931,-38252.10015319,0.00010207,2]
[345005081,1733925031941,-400.0,0.00010228,2]
[345005082,1733925031950,-150.0,0.00010274,2]
[345005083,1733925031959,-300.0,0.00010306,2]
[345005084,1733925031968,-24085.983528,0.00010307,2]
[345005085,1733925031977,-183.99,0.00010307,2]
[345005086,1733925031987,-183.99,0.0001031,2]
[345005087,1733925031996,-183.99,0.00010313,2]
[345005088,1733925032005,-183.99,0.00010315,2]
[345005089,1733925032015,-183.99,0.00010318,2]
[345005090,1733925032035,-183.99,0.00010321,2]
[345005091,1733925032044,-183.99,0.00010324,2]
[345005092,1733925032053,-183.99,0.00010326,2]
[345005093,1733925032062,-183.99,0.00010329,2]
[345005094,1733925032071,-183.99,0.00010332,2]
[345005095,1733925032080,-183.99,0.00010334,2]
[345005096,1733925032089,-183.99,0.00010337,2]
[345005097,1733925032099,-183.99,0.0001034,2]
[345005098,1733925032108,-183.99,0.00010343,2]
[345005099,1733925032117,-183.99,0.00010345,2]
[345005100,1733925032130,-150.0,0.00010348,2]
[345005101,1733925032141,-183.99,0.00010348,2]
[345005102,1733925032151,-183.99,0.00010351,2]
[345005103,1733925032160,-183.99,0.00010353,2]
[345005105,1733925032169,-183.99,0.00010356,2]
[345005107,1733925032179,-183.99,0.00010359,2]
[345005109,1733925032188,-167.82,0.00010411,2]
[345005111,1733925032198,-250.0,0.00010428,2]
[345005112,1733925032207,-645.25,0.00010428,2]
[345005113,1733925032217,-1500.0,0.00010428,2]
[345005114,1733925032226,-2171.77,0.00010453,2]
[345005115,1733925032235,-363.76,0.00010478,2]
[345005116,1733925032245,-157.44,0.00010538,2]
[345005117,1733925032254,-578.175,0.0001055,2]
[345005118,1733925032264,-364.42,0.00010578,2]
[345005119,1733925032273,-150.0,0.00010578,2]
[345005120,1733925032283,-150.0,0.00010578,2]
[345005122,1733925032292,-324.85,0.00010578,2]
[345005124,1733925032302,-364.42,0.00010578,2]
[345005126,1733925032311,-400.0,0.00010593,2]
[345005128,1733925032321,-1000.0,0.00010748,2]
[345005129,1733925032331,-150.0,0.00010778,2]
[345005130,1733925032340,-35227.0,0.00010781,2]
[345005131,1733925032350,-150.12,0.00010852,2]
[345005132,1733925032360,-150.0,0.00010852,2]
[345005133,1733925032369,-150.0,0.00010852,2]
[345005134,1733925032382,-150.0,0.00010852,2]
[345005135,1733925032392,-150.0,0.00010852,2]
[345005136,1733925032401,-3000.0,0.0001088,2]
[345005137,1733925032411,-3851.1447,0.00010899,2]
[345005138,1733925032421,-2500.0,0.00010899,2]
[345005139,1733925032430,-259.13,0.00010899,2]
[345005140,1733925032440,-400.4626,0.000109,2]
[345005141,1733925032450,-936.1442,0.000109,2]
[345005142,1733925032459,-5813.2933,0.000109,2]
[345005143,1733925032469,-167.82,0.00010953,2]
[345005144,1733925032479,-400.0,0.00010958,2]
[345005145,1733925032488,-153.527509,0.00010958,2]
[345005146,1733925032497,-153.527509,0.00010958,2]
[345005147,1733925032509,-153.527509,0.00010958,2]
[345005148,1733925032518,-153.527509,0.00010958,2]
[345005149,1733925032527,-153.527509,0.00010958,2]
[345005150,1733925032536,-153.527509,0.00010958,2]
[345005151,1733925032546,-153.527509,0.00010958,2]
[345005152,1733925032556,-153.527509,0.00010958,2]
[345005153,1733925032565,-153.527509,0.00010958,2]
[345005154,1733925032574,-154.941873,0.00010958,2]
[345005155,1733925032583,-154.941873,0.00010958,2]
[345005156,1733925032596,-154.941873,0.00010958,2]
[345005157,1733925032605,-307.055018,0.00010958,2]
[345005158,1733925032614,-154.941873,0.00010958,2]
[345005159,1733925032623,-307.055018,0.00010958,2]
[345005160,1733925032635,-154.941873,0.00010958,2]
[345005161,1733925032645,-307.055018,0.00010958,2]
[345005162,1733925032655,-154.941873,0.00010958,2]
[345005163,1733925032664,-154.941873,0.00010958,2]
[345005164,1733925032673,-307.055018,0.00010958,2]
[345005165,1733925032682,-154.941873,0.00010958,2]
[345005166,1733925032692,-307.055018,0.00010958,2]
[345005167,1733925032701,-307.055018,0.00010958,2]
[345005168,1733925032711,-307.055018,0.00010958,2]
[345005169,1733925032720,-307.055018,0.00010958,2]
[345005170,1733925032730,-307.055018,0.00010958,2]
[345005171,1733925032739,-500.0,0.00010973,2]
[345005172,1733925032749,-232.31145183,0.00010973,2]
[345005173,1733925032759,-200.0,0.00010979,2]
[345005174,1733925032769,-1500.553,0.00010992,2]
[345005175,1733925032780,-175.244,0.00010992,2]
[345005176,1733925032790,-2000.0,0.00010994,2]
[345005177,1733925032800,-200.0,0.00010994,2]
[345005178,1733925032809,-2000.0,0.00010994,2]
[345005179,1733925032819,-200.0,0.00010994,2]
[345005180,1733925032829,-201545.0399927,0.00010994,2]
[345005181,1733925032839,-33827.18423852,0.00010994,2]
[345005182,1733925032848,-200.0,0.00010995,2]
[345005183,1733925032858,-234695.70783002,0.00010997,2]
[345005184,1733925032867,-24106.40627588,0.00010997,2]
[345005185,1733925032882,-9720.77796264,0.00010997,2]
[345005186,1733925032891,-200.0,0.00010997,2]
[345005187,1733925032901,-416.82483192,0.00010997,2]
[345005188,1733925032910,-660.924,0.00010998,2]
[345005189,1733925032919,-177.64907482,0.00010998,2]
[345005190,1733925032930,-500.0,0.00010998,2]
[345005191,1733925032940,-500.0,0.00010998,2]
[345005192,1733925032949,-1740.8,0.00010998,2]
[345005193,1733925032959,-500.0,0.00010998,2]
[345005194,1733925032969,-533.41,0.00010998,2]
[345005195,1733925032980,-500.0,0.00010998,2]
[345005196,1733925032989,-4041.45,0.00010998,2]
[345005197,1733925032999,-500.60954999,0.00010998,2]
[345005198,1733925033008,-500.0,0.00010998,2]
[345005199,1733925033018,-500.0,0.00010998,2]
[345005200,1733925033029,-501.00930488,0.00010998,2]
[345005201,1733925033039,-500.0,0.00010998,2]
[345005202,1733925033049,-500.26087406,0.00010998,2]
[345005203,1733925033060,-500.88470822,0.00010998,2]
[345005204,1733925033071,-500.0,0.00010998,2]
[345005205,1733925033081,-501.02435991,0.00010998,2]
[345005206,1733925033091,-324.92840885,0.00010998,2]
[345005207,1733925033101,-500.0,0.00010998,2]
[345005208,1733925033112,-500.0,0.00010998,2]
[345005209,1733925033123,-501.53358901,0.00010998,2]
[345005210,1733925033137,-500.67931672,0.00010998,2]
[345005211,1733925033147,-500.0,0.00010998,2]
[345005212,1733925033157,-500.0,0.00010998,2]
[345005213,1733925033167,-500.0,0.00010998,2]
[345005214,1733925033177,-1935.4,0.00010998,2]
[345005215,1733925033188,-500.0,0.00010998,2]
[345005216,1733925033198,-500.0,0.00010998,2]
[345005217,1733925033209,-500.0,0.00010998,2]
[345005218,1733925033220,-500.0,0.00010998,2]
[345005219,1733925033231,-500.0,0.00010998,2]
[345005220,1733925033242,-1178.22,0.00010998,2]
[345005221,1733925033254,-500.0,0.00010998,2]
[345005222,1733925033265,-527.57,0.00010998,2]
[345005223,1733925033275,-500.0,0.00010998,2]
[345005224,1733925033286,-500.78484755,0.00010998,2]
[345005225,1733925033297,-500.0,0.00010998,2]
[345005226,1733925033307,-500.0,0.00010998,2]
[345005227,1733925033318,-500.0,0.00010998,2]
[345005228,1733925033328,-500.0,0.00010998,2]
[345005229,1733925033338,-562.57,0.00010998,2]
[345005230,1733925033553,-500.0,0.00010998,2]
[345005231,1733925033567,-389.54448703,0.00010998,2]
[345005232,1733925033577,-500.0,0.00010998,2]
[345005233,1733925033588,-500.0,0.00010998,2]
[345005234,1733925033600,-500.70102107,0.00010998,2]
[345005235,1733925033611,-500.0,0.00010998,2]
[345005236,1733925033621,-500.0,0.00010998,2]
[345005237,1733925033635,-500.0,0.00010998,2]
[345005238,1733925033646,-500.0,0.00010998,2]
[345005239,1733925033656,-500.0,0.00010998,2]
[345005240,1733925033666,-500.0,0.00010998,2]
[345005241,1733925033676,-586.97374724,0.00010998,2]
[345005242,1733925033687,-500.0,0.00010998,2]
[345005243,1733925033697,-500.0,0.00010998,2]
[345005244,1733925033707,-1084.17,0.00010998,2]
[345005245,1733925033717,-1390.73,0.00010998,2]
[345005246,1733925033727,-500.0,0.00010998,2]
[345005247,1733925033737,-500.0,0.00010998,2]
[345005248,1733925033748,-500.0,0.00010998,2]
[345005249,1733925033759,-500.0,0.00010998,2]
[345005250,1733925033770,-500.0,0.00010998,2]
[345005251,1733925033780,-429.65623935,0.00010998,2]
[345005252,1733925033790,-500.0,0.00010998,2]
[345005253,1733925033799,-500.0,0.00010998,2]
[345005254,1733925033810,-500.0,0.00010998,2]
[345005255,1733925033820,-500.0,0.00010998,2]
[345005256,1733925033830,-500.0,0.00010998,2]
[345005257,1733925033840,-500.0,0.00010998,2]
[345005258,1733925033850,-500.0,0.00010998,2]
[345005259,1733925033860,-500.0,0.00010998,2]
[345005260,1733925033871,-500.0,0.00010998,2]
[345005261,1733925033885,-500.0,0.00010998,2]
[345005262,1733925033895,-574.13321533,0.00010998,2]
[345005263,1733925033905,-500.0,0.00010998,2]
[345005264,1733925033915,-500.0,0.00010998,2]
[345005265,1733925033925,-500.0,0.00010998,2]
[345005266,1733925033935,-234695.70783002,0.00010999,2]
[345005267,1733925033945,-1649.07175424,0.00010999,2]
[345005268,1733925033955,-349.76778211,0.00010999,2]
[345005269,1733925033965,-500.0,0.00010999,2]
[345005270,1733925033975,-463.84473445,0.00010999,2]
[345005271,1733925033985,-500.0,0.00010999,2]
[345005272,1733925033995,-389.38710467,0.00010999,2]
[345005273,1733925034004,-500.0,0.00010999,2]
[345005274,1733925034014,-454.63743349,0.00010999,2]
[345005275,1733925034024,-161.6263815,0.00010999,2]
[345005276,1733925034033,-448.93357446,0.00010999,2]
[345005277,1733925034042,-500.0,0.00010999,2]
[345005278,1733925034052,-500.0,0.00010999,2]
[345005279,1733925034061,-500.0,0.00010999,2]
[345005280,1733925034071,-500.0,0.00010999,2]
[345005281,1733925034081,-500.0,0.00010999,2]
[345005282,1733925034090,-500.0,0.00010999,2]
[345005283,1733925034101,-500.0,0.00010999,2]
[345005284,1733925034110,-500.0,0.00010999,2]
[345005285,1733925034121,-500.0,0.00010999,2]
[345005286,1733925034132,-500.0,0.00010999,2]
[345005287,1733925034143,-500.0,0.00010999,2]
[345005288,1733925034153,-500.0,0.00010999,2]
[345005289,1733925034163,-500.0,0.00010999,2]
[345005290,1733925034174,-529.15810189,0.00010999,2]
[345005291,1733925034184,-500.0,0.00010999,2]
[345005292,1733925034194,-1349.29,0.00010999,2]
[345005293,1733925034204,-500.0,0.00010999,2]
[345005294,1733925034214,-500.0,0.00010999,2]
[345005295,1733925034224,-1349.29,0.00010999,2]
[345005296,1733925034234,-500.0,0.00010999,2]
[345005297,1733925034244,-1349.29,0.00010999,2]
[345005298,1733925034254,-500.0,0.00010999,2]
[345005299,1733925034264,-1349.29,0.00010999,2]
[345005300,1733925034273,-500.0,0.00010999,2]
[345005301,1733925034284,-1349.29,0.00010999,2]
[345005302,1733925034294,-500.0,0.00010999,2]
[345005303,1733925034304,-1349.29,0.00010999,2]
[345005304,1733925034314,-500.0,0.00010999,2]
[345005305,1733925034324,-1349.29,0.00010999,2]
[345005306,1733925034334,-500.0,0.00010999,2]
[345005307,1733925034344,-1349.29,0.00010999,2]
[345005308,1733925034354,-1740.8,0.00010999,2]
[345005309,1733925034365,-1740.8,0.00010999,2]
[345005310,1733925034375,-1740.8,0.00010999,2]
[345005311,1733925034387,-1740.8,0.00010999,2]
[345005312,1733925034397,-1740.8,0.00010999,2]
[345005313,1733925034407,-1740.8,0.00010999,2]
[345005314,1733925034418,-1740.8,0.00010999,2]
[345005315,1733925034429,-1740.8,0.00010999,2]
[345005316,1733925034438,-1740.8,0.00010999,2]
[345005317,1733925034448,-500.0,0.00010999,2]
[345005318,1733925034458,-500.0,0.00010999,2]
[345005319,1733925034468,-389.42,0.00010999,2]
[345005320,1733925034477,-500.0,0.00010999,2]
[345005321,1733925034487,-500.0,0.00010999,2]
[345005322,1733925034496,-500.0,0.00010999,2]
[345005323,1733925034506,-500.0,0.00010999,2]
[345005324,1733925034520,-500.0,0.00010999,2]
[345005325,1733925034529,-500.0,0.00010999,2]
[345005326,1733925034539,-500.0,0.00010999,2]
[345005327,1733925034548,-500.0,0.00010999,2]
[345005328,1733925034559,-500.0,0.00010999,2]
[345005329,1733925034569,-500.0,0.00010999,2]
[345005330,1733925034578,-500.0,0.00010999,2]
[345005331,1733925034588,-474.51061509,0.00010999,2]
[345005332,1733925034598,-500.0,0.00010999,2]
[345005333,1733925034608,-168.67,0.00010999,2]
[345005334,1733925034619,-533.41,0.00010999,2]
[345005335,1733925034632,-500.0,0.00010999,2]
[345005336,1733925034641,-533.41,0.00010999,2]
[345005337,1733925034650,-500.0,0.00010999,2]
[345005338,1733925034660,-500.0,0.00010999,2]
[345005339,1733925034670,-533.41,0.00010999,2]
[345005340,1733925034680,-533.41,0.00010999,2]
[345005341,1733925034689,-533.41,0.00010999,2]
[345005342,1733925034698,-533.41,0.00010999,2]
[345005343,1733925034708,-533.41,0.00010999,2]
[345005344,1733925034717,-533.41,0.00010999,2]
[345005345,1733925034726,-533.41,0.00010999,2]
[345005346,1733925034736,-500.0,0.00010999,2]
[345005347,1733925034745,-500.0,0.00010999,2]
[345005348,1733925034754,-500.0,0.00010999,2]
[345005349,1733925034764,-500.0,0.00010999,2]
[345005350,1733925034773,-500.0,0.00010999,2]
[345005351,1733925034782,-500.0,0.00010999,2]
[345005352,1733925034791,-599.85,0.00010999,2]
[345005353,1733925034801,-500.0,0.00010999,2]
[345005354,1733925034810,-401.37578966,0.00010999,2]
[345005355,1733925034820,-4041.45,0.00010999,2]
[345005356,1733925034829,-4041.45,0.00010999,2]
[345005357,1733925034837,-4041.45,0.00010999,2]
[345005358,1733925034847,-4041.45,0.00010999,2]
[345005359,1733925034856,-4041.45,0.00010999,2]
[345005360,1733925034866,-4041.45,0.00010999,2]
[345005361,1733925034878,-4041.45,0.00010999,2]
[345005362,1733925034888,-4041.45,0.00010999,2]
[345005363,1733925034898,-4041.45,0.00010999,2]
[345005364,1733925034907,-500.0,0.00010999,2]
[345005365,1733925034916,-309.13315518,0.00010999,2]
[345005366,1733925034925,-500.0,0.00010999,2]
[345005367,1733925034934,-500.91684013,0.00010999,2]
[345005368,1733925034944,-826.67,0.00010999,2]
[345005369,1733925034953,-500.0,0.00010999,2]
[345005370,1733925034962,-500.0,0.00010999,2]
[345005371,1733925034973,-500.0,0.00010999,2]
[345005372,1733925034982,-500.0,0.00010999,2]
[345005373,1733925034991,-500.0,0.00010999,2]
[345005374,1733925035000,-500.0,0.00010999,2]
[345005375,1733925035010,-500.0,0.00010999,2]
[345005376,1733925035020,-500.0,0.00010999,2]
[345005377,1733925035029,-500.0,0.00010999,2]
[345005378,1733925035039,-500.0,0.00010999,2]
[345005379,1733925035049,-500.0,0.00010999,2]
[345005380,1733925035058,-500.0,0.00010999,2]
[345005381,1733925035068,-602.56710479,0.00010999,2]
[345005382,1733925035077,-500.0,0.00010999,2]
[345005383,1733925035087,-500.0,0.00010999,2]
[345005384,1733925035096,-342.53452958,0.00010999,2]
[345005385,1733925035106,-503.47508867,0.00010999,2]
[345005386,1733925035115,-500.0,0.00010999,2]
[345005387,1733925035125,-500.0,0.00010999,2]
[345005388,1733925035136,-500.0,0.00010999,2]
[345005389,1733925035147,-500.0,0.00010999,2]
[345005390,1733925035157,-500.0,0.00010999,2]
[345005391,1733925035166,-500.0,0.00010999,2]